bitfinex/quotes_SOLUSD_20250217
["timestamp","ask_amount","ask_price","bid_price","bid_amount"]
[1739804940702,25.53411292,184.04,183.97,25.59711292]
[1739804940898,25.53411292,184.01,183.97,0.063]
[1739804941099,26.17581711,184.0,183.97,0.063]
[1739804941403,25.53411292,183.99,183.97,0.063]
[1739804941700,0.64170419,183.98,183.97,0.063]
[1739804941892,6.07700419,183.98,183.97,0.063]
[1739804942400,45.02296564,183.98,183.97,0.063]
[1739804942591,6.07700419,183.98,183.97,0.063]
[1739804943601,20.0,183.95,183.93,0.063]
[1739804943810,0.64170419,183.94,183.93,0.063]
[1739804944191,46.17581711,183.94,183.93,0.063]
[1739804945708,51.61231711,183.94,183.93,0.063]
[1739804947106,26.07820419,183.94,183.93,0.063]
[1739804950303,51.61231711,183.94,183.93,0.063]
[1739804953215,65.02416564,183.94,183.92,0.063]
[1739804953400,13.41184853,183.92,183.91,0.0001]
[1739804953711,39.58766564,183.92,183.91,0.0001]
[1739804954212,38.84954853,183.9,183.89,0.0001]
[1739804954390,65.02536564,183.9,183.89,0.0001]
[1739804954593,55.49992333,183.9,183.89,0.0001]
[1739804955518,61.61102333,183.9,183.89,0.0001]
[1739804956228,49.42051914,183.86,183.85,1.271e-05]
[1739804956438,57.71663892,183.86,183.85,1.271e-05]
[1739804956935,13.41184853,183.85,183.84,1.271e-05]
[1739804957102,29.42051914,183.85,183.84,1.271e-05]
[1739804957540,13.41184853,183.81,183.78,0.063]
[1739804957749,20.0,183.78,183.76,0.03]
[1739804957920,16.6503748,183.77,183.76,0.03]
[1739804958230,20.0,183.75,183.74,0.03]
[1739804958431,25.4421,183.75,183.74,0.03]
[1739804959331,20.64170419,183.75,183.74,0.03]
[1739804959534,0.64170419,183.78,183.74,16.03867061]
[1739804959731,0.64170419,183.8,183.77,16.00867061]
[1739804959921,0.64170419,183.82,183.77,16.00867061]
[1739804960934,0.64170419,183.82,183.77,16.00867061]
[1739804961840,16.00867061,183.81,183.74,17.65847061]
[1739804962134,0.64170419,183.8,183.76,16.00867061]
[1739804962633,0.64170419,183.81,183.77,16.00867061]
[1739804963624,0.64170419,183.83,183.8,16.00867061]
[1739804963830,0.64170419,183.84,183.8,16.00867061]
[1739804964351,0.64170419,183.84,183.79,16.00867061]
[1739804964710,0.64170419,183.84,183.8,16.00867061]
[1739804965539,6.08120419,183.84,183.79,16.00867061]
[1739804965719,0.64170419,183.84,183.79,16.00867061]
[1739804965920,0.64170419,183.84,183.8,16.00867061]
[1739804966733,0.64170419,183.85,183.81,16.00867061]
[1739804967017,0.64170419,183.85,183.8,16.00867061]
[1739804967437,0.64170419,183.85,183.81,16.00867061]
[1739804967822,0.64170419,183.86,183.81,16.00867061]
[1739804968037,0.64170419,183.87,183.82,16.00867061]
[1739804969241,6.08000419,183.88,183.82,16.00867061]
[1739804969629,0.64170419,183.88,183.84,16.00867061]
[1739804969834,0.64170419,183.9,183.85,16.00867061]
[1739804970034,0.64170419,183.9,183.86,16.00867061]
[1739804970848,0.64170419,183.91,183.86,16.00867061]
[1739804971050,6.07910419,183.91,183.85,16.00867061]
[1739804971548,22.0877748,183.91,183.85,16.00867061]
[1739804972242,0.063,183.86,183.83,7.0385]
[1739804972449,0.063,183.86,183.85,16.00867061]
[1739804974758,16.07167061,183.86,183.79,16.00867061]
[1739804975059,16.00867061,183.83,183.77,7.767]
[1739804975356,0.64170419,183.82,183.77,23.77567061]
[1739804976758,0.64170419,183.83,183.78,16.00867061]
[1739804977252,0.64170419,183.84,183.8,16.00867061]
[1739804977554,0.063,183.86,183.81,16.00867061]
[1739804977752,5.502,183.86,183.81,16.00867061]
[1739804977950,0.64170419,183.85,183.8,16.00867061]
[1739804978334,6.14370419,183.86,183.81,16.00867061]
[1739804978657,0.70470419,183.86,183.81,16.00867061]
[1739804978836,0.063,183.86,183.81,16.00867061]
[1739804979033,0.063,183.86,183.82,16.00867061]
[1739804979237,0.063,183.86,183.85,16.00867061]
[1739804980038,0.063,183.86,183.82,20.0]
[1739804980238,0.063,183.86,183.85,16.00867061]
[1739804981955,0.063,183.86,183.85,21.44787061]
[1739804983755,0.063,183.86,183.85,29.37957061]
[1739804983961,0.063,183.86,183.85,30.19520192]
[1739804985158,0.063,183.86,183.85,43.60705045]
[1739804985352,0.063,183.91,183.86,13.41184853]
[1739804985553,0.063,183.91,183.9,16.00867061]
[1739804987035,0.063,183.91,183.9,29.42051914]
[1739804987256,0.063,183.91,183.9,34.85821914]
[1739804987841,6.07590419,184.02,183.93,20.0]
[1739804988162,5.4339,184.03,183.98,16.00867061]
[1739804988338,6.07530419,184.04,183.98,16.00867061]
[1739804989156,13.41184853,184.03,183.93,16.00867061]
[1739804989358,16.00867061,183.96,183.9,16.00867061]
[1739804990151,16.00867061,183.97,183.91,16.00867061]
[1739804990356,0.64170419,183.96,183.91,16.00867061]
[1739804990549,25.57954675,183.97,183.91,25.57954675]
[1739804990756,31.30125094,183.96,183.9,25.57954675]
[1739804990953,25.57954675,183.95,183.89,25.57954675]
[1739804991149,26.22125094,183.94,183.88,25.57954675]
[1739804992367,5.4368,183.93,183.88,25.57954675]
[1739804993563,26.22125094,183.94,183.88,25.57954675]
[1739804993774,6.07830419,183.94,183.88,25.57954675]
[1739804993945,25.57954675,183.93,183.86,20.0]
[1739804994267,36.69855094,183.92,183.83,5.4395]
[1739804994451,31.65855094,183.92,183.85,25.57954675]
[1739804994845,25.57954675,183.91,183.84,25.57954675]
[1739804995046,31.26125094,183.9,183.84,25.57954675]
[1739804995263,26.22125094,183.91,183.85,25.57954675]
[1739804995571,0.64170419,183.91,183.85,25.57954675]
[1739804995754,5.4373,183.92,183.87,25.57954675]
[1739804995944,6.07830419,183.94,183.89,25.57954675]
[1739804996448,31.65785094,183.94,183.88,0.03]
[1739804996675,6.14130419,183.94,183.89,25.57954675]
[1739804997153,5.4996,183.94,183.89,25.57954675]
[1739804997357,5.04,183.93,183.89,25.57954675]
[1739804997971,5.04,183.93,183.88,0.03]
[1739804997972,5.04,183.92,183.91,25.57954675]
[1739804998154,0.063,183.94,183.91,25.57954675]
[1739804999063,0.70470419,183.94,183.89,25.57954675]
[1739804999264,25.57954675,183.93,183.88,0.03]
[1739804999564,0.64170419,183.92,183.88,0.03]
[1739804999969,26.22125094,183.92,183.88,0.03]
[1739805000269,25.57954675,183.89,183.88,0.03]
[1739805000447,26.22125094,183.89,183.88,0.03]
[1739805001060,31.65925094,183.89,183.88,0.03]
[1739805002155,45.07109947,183.89,183.88,0.03]
[1739805003070,20.0,183.85,183.78,25.57954675]
[1739805003368,5.68170419,183.84,183.78,25.57954675]
[1739805003560,0.64170419,183.84,183.79,25.57954675]
[1739805003873,0.64170419,183.84,183.78,25.57954675]
[1739805004251,0.64170419,183.84,183.79,25.57954675]
[1739805004653,0.64170419,183.84,183.77,6.9824]
[1739805004654,31.66005094,183.87,183.8,25.57954675]
[1739805004854,5.04,183.86,183.81,25.57954675]
[1739805005063,6.08050419,183.87,183.81,25.57954675]
[1739805005455,0.64170419,183.87,183.81,25.57954675]
[1739805005657,6.08030419,183.87,183.81,25.57954675]
[1739805005877,0.64170419,183.87,183.82,25.57954675]
[1739805006178,31.65925094,183.9,183.83,25.57954675]
[1739805007179,6.07970419,183.9,183.84,25.57954675]
[1739805007365,5.04,183.89,183.85,25.57954675]
[1739805007874,0.70470419,183.94,183.88,25.57954675]
[1739805008058,0.063,183.94,183.91,25.57954675]
[1739805008972,0.063,183.94,183.92,25.57954675]
[1739805009180,0.063,183.94,183.93,25.57954675]
[1739805009554,0.063,183.94,183.93,31.01634675]
[1739805010873,0.063,183.94,183.93,25.57954675]
[1739805012287,0.063,183.94,183.93,31.01634675]
[1739805019500,0.063,183.94,183.93,44.42819528]
[1739805019722,0.0001,183.94,183.93,77.95694203]
[1739805020098,0.0001,183.94,183.93,52.37739528]
[1739805020700,0.0001,183.94,183.93,42.77128974]
[1739805021224,0.0001,183.94,183.93,75.42128974]
[1739805021817,0.063,184.05,183.96,20.0]
[1739805022021,0.063,184.05,184.01,15.97344121]
[1739805023020,0.063,184.05,184.02,15.97344121]
[1739805023206,0.063,184.05,184.03,15.97344121]
[1739805024232,0.063,184.05,184.02,15.97344121]
[1739805025326,0.063,184.05,184.01,15.97344121]
[1739805025510,0.063,184.05,184.0,15.97344121]
[1739805025931,5.4963,184.05,184.0,15.97344121]
[1739805026632,5.4963,184.05,184.01,15.97344121]
[1739805027136,5.4963,184.05,184.0,15.97344121]
[1739805030341,5.4963,184.05,183.99,15.97344121]
[1739805031338,0.64170419,184.04,183.99,15.97344121]
[1739805031830,6.13800419,184.05,183.99,15.97344121]
[1739805032533,15.97344121,184.03,183.97,15.97344121]
[1739805032718,19.72120419,184.05,183.95,15.97344121]
[1739805032719,0.64170419,184.02,183.95,15.97344121]
[1739805032918,15.97344121,184.02,183.95,15.97344121]
[1739805033334,21.40724121,184.03,183.96,15.97344121]
[1739805033526,0.64170419,184.02,183.96,15.97344121]
[1739805034353,16.6151454,184.02,183.95,15.97344121]
[1739805035254,5.435,183.99,183.94,15.97344121]
[1739805035544,5.435,183.99,183.95,15.97344121]
[1739805035747,5.435,183.99,183.94,15.97344121]
[1739805035938,5.4348,184.0,183.95,15.97344121]
[1739805037148,15.97344121,183.98,183.92,15.97344121]
[1739805037323,5.4359,183.96,183.92,15.97344121]
[1739805039341,5.4359,183.96,183.91,15.97344121]
[1739805040149,16.6151454,183.95,183.88,17.63954121]
[1739805040370,15.97344121,183.94,183.88,16.00344121]
[1739805041136,16.6151454,183.93,183.88,0.03]
[1739805041547,5.4371,183.92,183.88,0.03]
[1739805042270,0.64170419,183.91,183.88,0.03]
[1739805042653,21.41054121,183.92,183.88,0.03]
[1739805042955,0.64170419,183.91,183.88,0.03]
[1739805043564,5.4377,183.9,183.88,0.03]
[1739805045444,0.64170419,183.89,183.88,0.03]
[1739805046076,21.41114121,183.9,183.88,0.03]
[1739805046382,0.64170419,183.89,183.88,0.03]
[1739805046792,6.07940419,183.9,183.88,0.03]
[1739805047456,22.0528454,183.9,183.88,0.03]
[1739805049061,15.97344121,183.89,183.88,0.03]
[1739805049262,15.97344121,183.89,183.81,0.03]
[1739805049263,20.0,183.86,183.81,0.03]
[1739805049584,46.86230419,183.9,183.81,0.03]
[1739805049585,15.97344121,183.84,183.81,0.03]
[1739805049753,0.64170419,183.83,183.81,0.03]
[1739805050385,0.64170419,183.89,183.82,15.97344121]
[1739805050595,5.4383,183.88,183.84,15.97344121]
[1739805051482,16.6151454,183.9,183.84,15.97344121]
[1739805051691,22.0529454,183.9,183.84,15.97344121]
[1739805052266,6.07950419,183.9,183.85,15.97344121]
[1739805052584,0.64170419,183.89,183.83,15.97344121]
[1739805052977,0.64170419,183.91,183.86,15.97344121]
[1739805053484,6.07920419,183.91,183.85,15.97344121]
[1739805054205,22.0523454,183.92,183.86,15.97344121]
[1739805054916,22.0523454,183.92,183.87,15.97344121]
[1739805054917,6.07890419,183.92,183.87,15.97344121]
[1739805055092,22.0523454,183.92,183.86,15.97344121]
[1739805056006,15.97344121,183.91,183.85,15.97344121]
[1739805056204,0.64170419,183.9,183.85,15.97344121]
[1739805057112,16.6151454,183.91,183.85,15.97344121]
[1739805057412,15.97344121,183.89,183.85,0.03]
[1739805057616,0.64170419,183.88,183.85,0.03]
[1739805059183,0.64170419,183.9,183.85,16.00344121]
[1739805059383,5.4377,183.91,183.85,16.00344121]
[1739805059684,6.07940419,183.91,183.85,16.00344121]
[1739805060320,6.07940419,183.91,183.86,15.97344121]
[1739805060483,22.0528454,183.91,183.85,16.00344121]
[1739805060684,15.97344121,183.9,183.85,0.03]
[1739805061021,0.64170419,183.89,183.85,0.03]
[1739805061195,16.6151454,183.89,183.85,0.03]
[1739805061408,15.97344121,183.87,183.85,0.03]
[1739805061615,0.64170419,183.86,183.85,0.03]
[1739805062149,16.6151454,183.86,183.85,0.03]
[1739805062523,22.0540454,183.86,183.85,0.03]
[1739805062997,29.7261454,183.86,183.81,0.03]
[1739805063204,15.97344121,183.82,183.81,0.03]
[1739805063704,15.97344121,183.83,183.81,0.03]
[1739805063904,0.64170419,183.85,183.81,0.03]
[1739805064737,5.4389,183.86,183.81,16.00344121]
[1739805064946,6.08030419,183.87,183.82,15.97344121]
[1739805066339,6.08030419,183.87,183.81,16.00344121]
[1739805066640,22.0537454,183.87,183.81,16.00344121]
[1739805067134,0.64170419,183.87,183.82,15.97344121]
[1739805067296,0.64170419,183.88,183.83,15.97344121]
[1739805067503,15.97344121,183.85,183.81,0.03]
[1739805067720,16.6151454,183.84,183.81,0.03]
[1739805068037,15.97344121,183.87,183.81,0.03]
[1739805068218,0.64170419,183.86,183.81,21.44374121]
[1739805068424,16.6151454,183.89,183.83,15.97344121]
[1739805068622,0.64170419,183.89,183.83,15.97344121]
[1739805069437,15.97344121,183.86,183.81,0.03]
[1739805069641,16.6151454,183.85,183.81,0.03]
[1739805069844,15.97344121,183.84,183.81,0.03]
[1739805070021,16.6151454,183.83,183.81,0.03]
[1739805070437,0.64170419,183.83,183.81,0.03]
[1739805071219,5.4401,183.82,183.81,0.03]
[1739805071426,0.64170419,183.86,183.81,0.03]
[1739805071634,0.64170419,183.86,183.81,16.00344121]
[1739805071831,16.6151454,183.86,183.81,0.03]
[1739805072733,0.64170419,183.86,183.81,0.03]
[1739805073040,5.4383,183.88,183.82,15.97344121]
[1739805073225,0.64170419,183.88,183.83,15.97344121]
[1739805073736,0.063,183.89,183.86,15.97344121]
[1739805073933,0.063,183.89,183.88,15.97344121]
[1739805074319,0.063,183.89,183.87,15.97344121]
[1739805074826,0.063,183.89,183.86,15.97344121]
[1739805075138,15.97344121,183.87,183.81,0.03]
[1739805075325,15.97344121,183.85,183.81,0.03]
[1739805075644,0.64170419,183.84,183.81,0.03]
[1739805075837,16.6151454,183.84,183.81,0.03]
[1739805076541,15.97344121,183.83,183.81,0.03]
[1739805076742,0.64170419,183.82,183.81,0.03]
[1739805077324,0.64170419,183.83,183.81,0.03]
[1739805077545,15.97344121,183.82,183.81,0.03]
[1739805077952,16.6151454,183.83,183.81,0.03]
[1739805078158,15.97344121,183.82,183.81,0.03]
[1739805079050,5.4401,183.82,183.81,0.03]
[1739805079258,21.41354121,183.82,183.81,0.03]
[1739805087860,5.4401,183.82,183.81,0.03]
[1739805088159,21.41354121,183.82,183.81,0.03]
[1739805090360,6.08160419,183.83,183.81,0.03]
[1739805091457,0.64170419,183.83,183.81,0.03]
[1739805091667,0.64170419,183.84,183.81,0.03]
[1739805092049,16.6151454,183.84,183.81,0.03]
[1739805093054,5.4398,183.83,183.81,0.03]
[1739805093369,0.64170419,183.82,183.81,0.03]
[1739805094167,16.6151454,183.82,183.81,0.03]
[1739805095067,22.0552454,183.82,183.81,0.03]
[1739805097262,35.97344121,183.79,183.76,0.03]
[1739805097469,0.64170419,183.78,183.76,0.03]
[1739805099677,5.4415,183.77,183.76,0.03]
[1739805100473,21.41494121,183.77,183.76,0.03]
[1739805101586,5.4415,183.77,183.76,0.03]
[1739805102279,0.64170419,183.78,183.76,0.03]
[1739805102487,6.08300419,183.78,183.76,0.03]
[1739805103289,15.97344121,183.81,183.76,0.03]
[1739805103490,6.08180419,183.82,183.77,15.97344121]
[1739805103666,16.03644121,183.85,183.79,15.97344121]
[1739805103857,0.64170419,183.84,183.8,15.97344121]
[1739805104173,22.1173454,183.85,183.79,15.97344121]
[1739805105161,0.70470419,183.85,183.79,15.97344121]
[1739805105468,0.063,183.85,183.81,15.97344121]
[1739805106902,0.063,183.85,183.8,15.97344121]
[1739805107273,0.063,183.85,183.81,0.03]
[1739805107676,0.70470419,183.85,183.81,0.03]
[1739805108376,106.4372454,183.86,183.81,0.03]
[1739805109113,15.97344121,183.85,183.81,0.03]
[1739805110504,90.46380419,183.86,183.81,0.03]
[1739805110505,21.41294121,183.84,183.81,0.03]
[1739805110706,15.97344121,183.82,183.81,0.03]
[1739805112098,5.4395,183.84,183.81,0.03]
[1739805113883,15.97344121,183.86,183.81,0.03]
[1739805114088,5.4392,183.85,183.81,0.03]
[1739805114709,15.97344121,183.84,183.81,0.03]
[1739805115011,15.97344121,183.83,183.81,0.03]
[1739805116781,5.4401,183.82,183.81,0.03]
[1739805119890,21.41354121,183.82,183.81,0.03]
[1739805121704,5.4398,183.83,183.81,0.03]
[1739805123723,21.41294121,183.84,183.81,0.03]
[1739805123922,0.063,183.85,183.81,0.03]
[1739805124790,0.063,183.85,183.81,16.00344121]
[1739805125089,0.063,183.85,183.83,15.97344121]
[1739805125490,0.063,183.85,183.82,1.5551]
[1739805126792,15.97344121,183.84,183.81,0.03]
[1739805127111,15.97344121,183.83,183.81,0.03]
[1739805127804,5.4401,183.82,183.81,0.03]
[1739805128517,21.41354121,183.82,183.81,0.03]
[1739805129926,5.4398,183.83,183.81,0.03]
[1739805130110,21.41324121,183.83,183.81,0.03]
[1739805130309,15.97344121,183.82,183.81,0.03]
[1739805132105,21.41354121,183.82,183.81,0.03]
[1739805134643,15.69085486,183.82,183.76,0.03]
[1739805134827,10.25075486,183.78,183.76,0.03]
[1739805135125,10.25075486,183.77,183.76,0.03]
[1739805136527,13.41184853,183.76,183.74,0.03]
[1739805136729,16.02920425,183.75,183.74,0.03]
[1739805138542,21.47130425,183.75,183.74,0.03]
[1739805142009,5.4421,183.75,183.74,0.03]
[1739805142234,21.47130425,183.75,183.74,0.03]
[1739805147347,5.4421,183.75,183.74,0.03]
[1739805148439,21.47130425,183.75,183.74,0.03]
[1739805152140,20.0,183.72,183.69,0.03]
[1739805152352,16.02920425,183.7,183.69,0.03]
[1739805152940,21.47280425,183.7,183.69,0.03]
[1739805153239,21.47280425,183.7,183.69,0.0001]
[1739805153442,37.20019668,183.7,183.66,0.03]
[1739805153640,49.44105278,183.67,183.62,0.03]
[1739805153849,16.02920425,183.63,183.62,0.03]
[1739805154222,20.0,183.6,183.55,0.03]
[1739805154429,36.02920425,183.6,183.55,0.03]
[1739805155353,16.02920425,183.59,183.55,0.03]
[1739805155531,16.02920425,183.6,183.55,0.03]
[1739805155724,20.0,183.62,183.55,0.03]
[1739805155725,16.02920425,183.61,183.55,0.03]
[1739805156124,16.02920425,183.6,183.55,0.03]
[1739805157147,20.0,183.62,183.55,0.03]
[1739805157358,14.97924853,183.65,183.55,16.05920425]
[1739805157359,16.02920425,183.61,183.55,16.05920425]
[1739805157528,16.02920425,183.61,183.55,0.03]
[1739805158228,16.02920425,183.6,183.55,0.03]
[1739805158950,16.02920425,183.62,183.55,16.05920425]
[1739805159441,16.02920425,183.61,183.55,16.05920425]
[1739805160433,16.02920425,183.61,183.55,0.03]
[1739805160838,16.02920425,183.61,183.55,21.50710425]
[1739805161448,6.5743,183.68,183.58,16.02920425]
[1739805161645,16.02920425,183.68,183.61,16.02920425]
[1739805161837,16.02920425,183.66,183.6,16.02920425]
[1739805162034,16.02920425,183.65,183.59,23.90820425]
[1739805162354,16.02920425,183.64,183.59,7.879]
[1739805162526,86.34,183.67,183.62,16.02920425]
[1739805163438,102.36920425,183.67,183.61,16.02920425]
[1739805163629,86.34,183.67,183.62,16.02920425]
[1739805163840,16.02920425,183.7,183.63,16.02920425]
[1739805164221,16.02920425,183.7,183.64,16.02920425]
[1739805164442,16.02920425,183.69,183.64,5.4454]
[1739805164636,5.443,183.73,183.65,16.02920425]
[1739805164856,21.47170425,183.74,183.67,16.02920425]
[1739805165252,16.02920425,183.73,183.67,16.02920425]
[1739805165430,16.02920425,183.72,183.66,16.02920425]
[1739805165631,16.02920425,183.73,183.67,16.02920425]
[1739805165829,16.09220425,183.75,183.69,16.02920425]
[1739805166435,21.53450425,183.75,183.69,16.02920425]
[1739805166641,0.063,183.75,183.69,21.47300425]
[1739805166848,0.063,183.75,183.7,16.02920425]
[1739805167147,16.09220425,183.75,183.69,21.47300425]
[1739805167770,16.09220425,183.75,183.69,16.02920425]
[1739805168271,21.53440425,183.75,183.69,16.02920425]
[1739805168655,21.53440425,183.75,183.69,16.05920425]
[1739805168844,20.0,183.72,183.69,0.03]
[1739805169043,16.02920425,183.7,183.69,0.03]
[1739805171070,20.0,183.72,183.69,0.03]
[1739805171071,5.4434,183.71,183.69,0.03]
[1739805171471,21.47260425,183.71,183.69,0.03]
[1739805173671,16.02920425,183.71,183.69,0.03]
[1739805173880,36.02920425,183.72,183.69,0.03]
[1739805174576,5.4434,183.71,183.69,0.03]
[1739805175077,25.443,183.72,183.69,0.03]
[1739805175376,5.4424,183.74,183.69,16.05920425]
[1739805175882,21.47160425,183.74,183.69,0.03]
[1739805176371,16.02920425,183.72,183.69,0.03]
[1739805176983,16.02920425,183.71,183.69,0.03]
[1739805179283,5.4436,183.7,183.69,0.03]
[1739805179656,21.47280425,183.7,183.69,0.03]
[1739805184381,34.88465278,183.7,183.62,0.03]
[1739805184581,16.02920425,183.67,183.62,0.03]
[1739805185086,16.02920425,183.65,183.62,0.03]
[1739805185592,16.02920425,183.66,183.62,0.03]
[1739805185972,36.02920425,183.66,183.62,0.03]
[1739805186780,16.02920425,183.64,183.62,0.03]
[1739805187168,5.4457,183.63,183.62,0.03]
[1739805187870,21.47490425,183.63,183.62,0.03]
[1739805188961,5.4457,183.63,183.62,0.03]
[1739805189181,21.47490425,183.63,183.62,0.03]
[1739805191097,5.4457,183.63,183.62,0.03]
[1739805191282,16.02920425,183.63,183.62,0.03]
[1739805192502,16.02920425,183.64,183.62,0.03]
[1739805192703,21.47430425,183.65,183.62,0.03]
[1739805192875,5.4451,183.65,183.62,0.03]
[1739805193601,21.47430425,183.65,183.62,0.03]
[1739805193776,5.4457,183.63,183.62,0.03]
[1739805194097,21.47470425,183.64,183.62,0.03]
[1739805194305,5.4455,183.64,183.62,0.03]
[1739805196115,21.47470425,183.64,183.62,0.03]
[1739805196408,16.02920425,183.63,183.62,0.03]
[1739805197096,21.47490425,183.63,183.62,0.03]
[1739805197708,48.50105278,183.63,183.55,0.03]
[1739805197894,16.02920425,183.58,183.55,0.03]
[1739805198987,16.02920425,183.57,183.55,0.03]
[1739805199713,16.02920425,183.58,183.55,0.03]
[1739805199921,16.02920425,183.57,183.55,0.03]
[1739805200215,16.02920425,183.56,183.55,0.03]
[1739805201281,5.4478,183.56,183.55,0.03]
[1739805201510,16.02920425,183.58,183.55,0.03]
[1739805202085,21.47610425,183.59,183.55,0.03]
[1739805202492,16.02920425,183.58,183.55,0.03]
[1739805203591,21.47610425,183.59,183.55,0.03]
[1739805204318,16.02920425,183.58,183.55,0.03]
[1739805204490,21.47660425,183.58,183.55,0.03]
[1739805204692,16.02920425,183.57,183.55,0.03]
[1739805205587,16.02920425,183.56,183.55,0.03]
[1739805206488,21.47700425,183.56,183.55,0.03]
[1739805207215,16.02920425,183.56,183.55,0.03]
[1739805207521,16.02920425,183.58,183.55,0.03]
[1739805208989,5.4469,183.59,183.55,0.03]
[1739805209495,21.47610425,183.59,183.55,0.03]
[1739805209817,21.47590425,183.6,183.55,0.03]
[1739805210318,21.47560425,183.61,183.55,0.03]
[1739805210904,21.47560425,183.61,183.55,16.05920425]
[1739805211118,16.02920425,183.61,183.55,21.50720425]
[1739805211316,0.063,183.63,183.55,21.50720425]
[1739805211317,16.02920425,183.62,183.55,21.50720425]
[1739805211617,21.53810425,183.63,183.56,16.02920425]
[1739805211814,21.53810425,183.63,183.57,16.02920425]
[1739805212425,0.063,183.63,183.59,16.02920425]
[1739805212809,0.063,183.63,183.6,16.02920425]
[1739805213897,0.063,183.63,183.6,21.47570425]
[1739805214114,0.063,183.63,183.61,16.02920425]
[1739805214498,0.063,183.63,183.6,5.4465]
[1739805214499,0.063,183.63,183.62,17.60270425]
[1739805215829,0.063,183.63,183.62,23.04870425]
[1739805217214,0.063,183.63,183.62,23.86529655]
[1739805218237,0.063,183.7,183.63,6.2267]
[1739805218412,0.063,183.7,183.69,16.02920425]
[1739805218930,0.063,183.7,183.69,33.6729085]
[1739805219133,0.063,183.7,183.69,23.79450425]
[1739805220510,0.063,183.7,183.69,7.7653]
[1739805220913,0.063,183.7,183.69,1.6145]
[1739805224713,0.063,183.7,183.67,16.02920425]
[1739805226303,16.09220425,183.7,183.65,1.5344]
[1739805226506,16.02920425,183.69,183.62,21.47510425]
[1739805226917,16.09220425,183.7,183.63,16.02920425]
[1739805227546,16.02920425,183.69,183.62,16.02920425]
[1739805228048,5.4442,183.68,183.62,16.02920425]
[1739805228434,21.47340425,183.68,183.62,16.02920425]
[1739805230539,16.02920425,183.65,183.56,5.4775]
[1739805230729,16.02920425,183.65,183.58,16.02920425]
[1739805230918,16.02920425,183.65,183.62,0.03]
[1739805231332,5.4442,183.68,183.62,16.05920425]
[1739805231627,5.4439,183.69,183.63,16.02920425]
[1739805232247,21.47310425,183.69,183.63,16.02920425]
[1739805232855,16.02920425,183.68,183.62,16.05920425]
[1739805233028,16.02920425,183.64,183.62,0.03]
[1739805233952,5.4457,183.63,183.62,0.03]
[1739805235333,16.02920425,183.65,183.62,0.03]
[1739805236049,21.47400425,183.66,183.62,0.03]
[1739805237645,16.02920425,183.65,183.62,0.03]
[1739805237845,16.02920425,183.64,183.62,0.03]
[1739805239745,21.47490425,183.63,183.62,0.03]
[1739805242964,48.50105278,183.63,183.56,0.03]
[1739805243163,16.02920425,183.59,183.56,0.03]
[1739805243769,16.02920425,183.57,183.56,0.03]
[1739805243965,21.47670425,183.57,183.56,0.03]
[1739805246876,21.47670425,183.57,183.55,0.03]
[1739805247060,29.44105278,183.56,183.55,0.03]
[1739805247268,20.0,183.53,183.5,0.193343]
[1739805247478,16.02920425,183.52,183.5,0.193343]
[1739805247855,16.02920425,183.51,183.5,0.193343]
[1739805249179,21.47840425,183.51,183.5,0.193343]
[1739805252284,13.6215,183.54,183.5,0.193343]
[1739805252493,16.02920425,183.51,183.5,0.193343]
[1739805252783,16.02920425,183.52,183.5,0.193343]
[1739805253580,21.47830425,183.52,183.5,0.193343]
[1739805253781,16.02920425,183.52,183.5,0.193343]
[1739805254403,36.02920425,183.53,183.5,0.193343]
[1739805254992,16.02920425,183.54,183.5,0.193343]
[1739805255185,21.47700425,183.56,183.5,21.67204725]
[1739805255686,5.4478,183.56,183.51,16.02920425]
[1739805255977,13.6167,183.6,183.51,16.02920425]
[1739805256187,16.02920425,183.59,183.53,16.02920425]
[1739805256586,115.1566,183.65,183.55,16.02920425]
[1739805256587,16.02920425,183.62,183.55,16.02920425]
[1739805256807,16.02920425,183.62,183.56,16.02920425]